bitfinex-derivatives/quotes_ETHF0:USTF0_20241228
["timestamp","ask_amount","ask_price","bid_price","bid_amount"]
[1735387273101,0.8613,3361.8,3361.7,3.50578]
[1735387275697,0.4346,3362.0,3361.9,0.29797]
[1735387275897,0.4346,3362.0,3361.7,3.2078]
[1735387276098,0.4683,3361.9,3361.8,0.29797]
[1735387278810,0.73256,3362.0,3361.9,0.29797]
[1735387278811,0.4346,3362.0,3361.9,0.29797]
[1735387279707,0.73256,3362.0,3361.7,3.50578]
[1735387279907,0.73256,3362.0,3361.8,0.29797]
[1735387280208,0.4268,3361.9,3361.8,0.29797]
[1735387284104,0.4346,3362.0,3361.9,0.29797]
[1735387285907,0.8744,3362.1,3362.0,0.29796]
[1735387290514,0.29796,3362.0,3361.9,0.29797]
[1735387290705,0.8744,3362.1,3361.7,3.2078]
[1735387290907,0.29797,3361.9,3361.8,0.29797]
[1735387291209,1.17235,3362.1,3361.9,0.29796]
[1735387291807,0.29796,3362.0,3361.9,0.29796]
[1735387292113,0.29796,3362.0,3361.7,3.2078]
[1735387292310,1.17235,3362.1,3362.0,0.29796]
[1735387292510,1.17235,3362.1,3361.9,0.29796]
[1735387293510,1.17235,3362.1,3362.0,0.29796]
[1735387293714,0.8744,3362.1,3362.0,0.29796]
[1735387294903,0.8744,3362.1,3362.0,1.04268997]
[1735387297613,0.4482,3362.1,3362.0,1.04268997]
[1735387299816,0.4482,3362.1,3362.0,0.29796]
[1735387302220,3.50568,3362.9,3362.5,0.29791]
[1735387302429,3.6405,3362.9,3362.5,0.29791]
[1735387302728,0.73058,3362.9,3362.5,0.29791]
[1735387303227,0.29789,3362.8,3362.6,0.2979]
[1735387303427,0.29789,3362.8,3362.5,0.29791]
[1735387303628,0.29789,3362.8,3362.6,0.2979]
[1735387303830,0.2979,3362.7,3362.5,0.29791]
[1735387304019,6.69102716,3362.9,3362.2,3.2078]
[1735387304221,0.29793,3362.3,3362.2,3.2078]
[1735387304430,0.29793,3362.3,3361.9,4.64494851]
[1735387304431,0.29795,3362.1,3361.9,4.94290851]
[1735387304728,0.8918,3362.0,3361.9,4.94290851]
[1735387305326,0.8918,3362.0,3361.9,4.64494851]
[1735387305926,0.8918,3362.0,3361.8,0.29797]
[1735387306125,1.18976,3362.0,3361.7,3.50578]
[1735387307327,1.18976,3362.0,3361.7,0.29798]
[1735387307636,1.18976,3362.0,3361.8,0.29797]
[1735387308835,0.8918,3362.0,3361.7,3.2078]
[1735387309037,0.8918,3362.0,3361.7,4.78108466]
[1735387309336,0.8918,3362.0,3361.9,0.29797]
[1735387311630,0.4484,3362.2,3362.1,0.29795]
[1735387312829,5.1334425,3362.2,3362.1,0.29795]
[1735387314130,5.1334425,3362.2,3361.9,4.64494851]
[1735387314335,5.4313825,3362.2,3361.9,4.94290851]
[1735387314532,5.1334425,3362.2,3361.9,4.64494851]
[1735387314729,5.1334425,3362.2,3362.0,0.29796]
[1735387314928,5.1334425,3362.2,3361.9,4.64494851]
[1735387315329,0.29796,3362.0,3361.9,3.94054851]
[1735387316739,0.29798,3361.7,3361.6,3.2078]
[1735387316939,0.29798,3361.7,3361.6,3.50579]
[1735387317140,0.29798,3361.8,3361.6,3.50579]
[1735387317341,0.4472,3361.7,3361.6,3.50579]
[1735387317841,0.4472,3361.7,3361.4,6.93854628]
[1735387317842,1.19539,3361.7,3361.5,0.298]
[1735387318137,1.19539,3361.7,3361.4,10.14634628]
[1735387318138,0.8974,3361.7,3361.4,10.14634628]
[1735387318334,0.298,3361.5,3361.4,6.93854628]
[1735387318536,0.298,3361.5,3361.4,4.10974628]
[1735387318732,0.298,3361.5,3361.4,1.29214628]
[1735387318932,0.29802,3361.3,3361.2,9.25139504]
[1735387319143,0.29802,3361.3,3360.6,9.25139504]
[1735387319144,3.2078,3361.3,3360.6,9.25139504]
[1735387319336,0.29807,3360.8,3360.6,9.25139504]
[1735387319838,0.29807,3360.8,3360.6,9.54947504]
[1735387320041,0.29807,3360.8,3360.7,0.29807]
[1735387320234,0.29803,3361.2,3360.6,9.54947504]
[1735387320434,0.29807,3360.8,3360.7,0.29807]
[1735387321935,0.29808,3360.6,3360.5,0.4451]
[1735387322243,6.6972442,3360.8,3360.2,3.50591]
[1735387322535,0.29808,3360.7,3360.2,3.2078]
[1735387323235,0.29808,3360.7,3360.5,0.29809]
[1735387323838,3.51002566,3360.7,3360.2,3.2078]
[1735387324037,3.51002566,3360.7,3360.6,0.29808]
[1735387324445,3.51002566,3360.7,3360.2,3.2078]
[1735387324633,3.51002566,3360.7,3360.5,0.29808]
[1735387324834,3.51002566,3360.7,3360.6,0.4415]
[1735387325343,0.29807,3360.7,3360.6,0.4415]
[1735387327043,0.29811,3360.3,3360.2,3.2078]
[1735387327242,0.29813,3360.0,3359.9,0.4415]
[1735387327645,3.2078,3360.4,3359.7,1.57328466]
[1735387327850,3.2078,3360.4,3359.8,0.75335]
[1735387328043,0.29811,3360.3,3359.8,0.75335]
[1735387328341,3.2078,3360.4,3359.8,0.75335]
[1735387328545,1.57328466,3360.3,3359.6,3.2078]
[1735387328843,3.2078,3359.8,3359.5,0.4552]
[1735387329042,0.29817,3359.6,3359.5,0.4552]
[1735387329446,3.2078,3359.8,3359.2,9.25139504]
[1735387329647,0.2187,3359.7,3359.1,3.50601]
[1735387329950,0.29819,3359.4,3359.2,1.57328466]
[1735387330149,0.2187,3359.7,3359.2,1.57328466]
[1735387330355,0.29819,3359.5,3359.2,1.87148466]
[1735387330543,0.2187,3359.7,3359.2,1.57328466]
[1735387330846,0.2187,3359.7,3359.2,1.87149466]
[1735387330847,0.29818,3359.5,3359.2,1.87149466]
[1735387331149,0.29819,3359.4,3359.2,1.57328466]
[1735387331352,0.2982,3359.3,3359.2,1.57328466]
[1735387332650,0.29822,3359.0,3358.9,0.9196]
[1735387333551,0.29822,3359.0,3358.9,0.4552]
[1735387334251,0.29822,3359.0,3358.7,3.2078]
[1735387334252,0.29824,3358.8,3358.7,3.2078]
[1735387334452,0.29824,3358.8,3358.7,3.6448]
[1735387337953,0.29828,3358.4,3358.3,3.2078]
[1735387338551,0.484,3358.7,3358.1,2.02868466]
[1735387338748,0.29829,3358.2,3358.1,2.02868466]
[1735387339149,3.2078,3358.8,3358.1,2.02868466]
[1735387339354,3.2078,3358.8,3358.7,1.57328466]
[1735387339652,3.50604,3358.8,3358.7,1.57328466]
[1735387339854,3.2078,3358.8,3358.4,1.57328466]
[1735387340055,0.29827,3358.5,3358.4,1.57328466]
[1735387342057,0.29827,3358.5,3358.3,0.76428]
[1735387342857,0.29826,3358.6,3358.4,0.29828]
[1735387343360,3.2078,3358.8,3358.7,0.29825]
[1735387343661,3.2078,3359.2,3358.7,1.57328466]
[1735387343860,3.2078,3359.2,3358.8,0.4274]
[1735387344059,3.2078,3359.2,3359.1,0.29821]
[1735387344363,3.2078,3359.6,3359.0,1.57328466]
[1735387344561,0.29818,3359.5,3359.4,0.29819]
[1735387344762,3.2078,3360.0,3359.2,3.2078]
[1735387344954,0.29818,3359.6,3359.5,0.29818]
[1735387345160,3.2078,3360.0,3359.3,1.57328466]
[1735387345358,0.29813,3360.1,3359.9,0.29814]
[1735387346264,0.2981,3360.4,3360.2,0.29811]
[1735387346460,3.2078,3360.5,3360.2,0.29811]
[1735387346653,3.2078,3360.5,3359.7,3.2078]
[1735387346857,0.29812,3360.2,3360.0,0.29813]
[1735387348353,0.29812,3360.2,3359.9,0.29814]
[1735387348557,0.29812,3360.2,3360.0,0.29813]
[1735387350062,3.2078,3360.5,3359.8,0.8556]
[1735387350266,0.29812,3360.2,3360.1,0.29813]
[1735387350564,0.29811,3360.3,3360.1,0.29813]
[1735387350761,3.2078,3360.5,3359.8,2.42888466]
[1735387351066,0.29811,3360.3,3360.1,0.29812]
[1735387351464,3.2078,3360.5,3360.1,0.29812]
[1735387351968,0.29811,3360.3,3360.1,0.29812]
[1735387352663,0.29812,3360.2,3360.0,0.29813]
[1735387353863,3.2078,3360.5,3360.0,0.29813]
[1735387354164,0.29813,3360.1,3360.0,0.29813]
[1735387355163,3.2078,3360.5,3359.9,0.29814]
[1735387355365,0.29813,3360.1,3359.9,0.29814]
[1735387355560,0.29813,3360.1,3360.0,0.29813]
[1735387356961,0.29813,3360.1,3359.8,2.42888466]
[1735387357163,3.2078,3360.5,3359.8,0.8556]
[1735387357368,0.29814,3359.9,3359.8,0.8556]
[1735387358768,0.29815,3359.8,3359.7,3.2078]
[1735387364475,0.29814,3359.9,3359.8,0.29814]
[1735387364672,0.4402,3360.3,3359.7,3.2078]
[1735387364874,0.29815,3359.8,3359.7,3.2078]
[1735387366673,0.29816,3359.7,3359.6,0.425]
[1735387367072,1.17221,3360.2,3359.4,0.4669]
[1735387367273,0.29818,3359.5,3359.4,0.4669]
[1735387368179,0.4289,3359.8,3359.3,3.95409]
[1735387368380,0.29819,3359.4,3359.3,3.95409]
[1735387369580,0.29819,3359.5,3359.4,0.29818]
[1735387371480,0.29819,3359.4,3359.3,3.6559]
[1735387371685,0.29819,3359.4,3359.3,3.9541]
[1735387372279,0.29819,3359.4,3359.3,3.2078]
[1735387374484,3.51002566,3359.8,3359.7,0.29816]
[1735387374783,4.68605954,3360.0,3359.7,5.96308466]
[1735387375086,4.68605954,3360.3,3360.2,0.29812]
[1735387375283,4.68605954,3360.3,3360.2,3.50592]
[1735387376587,0.2981,3360.5,3360.3,0.29811]
[1735387377180,0.4635,3360.7,3360.2,3.2078]
[1735387377387,0.4635,3360.7,3360.5,0.29809]
[1735387377890,0.76158,3360.7,3360.5,0.29809]
[1735387378086,0.4635,3360.7,3360.5,0.29809]
[1735387378484,0.4635,3360.7,3360.6,0.29808]
[1735387380587,0.76158,3360.7,3360.5,0.29809]
[1735387380991,0.29808,3360.6,3360.4,0.2981]
[1735387382093,0.29809,3360.5,3360.3,2.30098466]
[1735387382286,0.29812,3360.2,3360.0,0.29813]
[1735387382485,0.29813,3360.2,3360.0,0.29813]
[1735387382687,0.4635,3360.7,3359.9,0.73794]
[1735387382993,0.4635,3360.7,3359.8,3.2078]
[1735387382994,0.74521,3360.6,3359.8,3.2078]
[1735387383192,0.29814,3359.9,3359.8,3.2078]
[1735387383397,0.29814,3360.0,3359.9,0.29814]
[1735387383791,3.2078,3360.3,3359.8,3.2078]
[1735387383995,0.29812,3360.2,3360.1,0.29812]
[1735387384294,4.68605954,3360.6,3359.8,3.2078]
[1735387384493,0.29812,3360.2,3359.8,3.2078]
[1735387384694,0.29813,3360.1,3360.0,0.29813]
[1735387385793,0.29813,3360.1,3359.8,3.2078]
[1735387385990,0.29813,3360.1,3359.9,0.29814]
[1735387386388,0.29813,3360.1,3360.0,0.29813]
[1735387386990,0.4599,3360.5,3359.8,3.2078]
[1735387386991,0.29811,3360.3,3359.8,3.2078]
[1735387387193,4.68605954,3360.5,3360.4,0.2981]
[1735387388096,0.76157,3360.7,3360.6,0.29808]
[1735387390293,4.68605954,3361.0,3360.3,3.62928466]
[1735387390498,4.68605954,3361.0,3360.9,0.29805]
[1735387390792,4.68605954,3361.0,3360.9,1.87133466]
[1735387390995,2.5475852,3361.0,3360.9,1.87133466]
[1735387391192,3.2650052,3361.5,3360.9,1.57328466]
[1735387391499,3.2650052,3361.5,3361.4,3.50581]
[1735387392192,3.2650052,3361.5,3361.4,3.2078]
[1735387392393,3.5630052,3361.5,3361.4,3.2078]
[1735387393101,1.01542,3361.5,3361.4,3.2078]
[1735387393301,0.71742,3361.5,3361.4,3.2078]
[1735387393501,0.71742,3361.5,3361.4,3.50581]
[1735387410913,0.4608,3362.0,3361.9,0.29797]
[1735387411121,0.4608,3362.0,3361.9,3.50577]
[1735387412219,0.4608,3362.0,3361.9,5.07905466]
[1735387412911,0.4324,3362.2,3361.9,5.07905466]
[1735387413109,0.4324,3362.2,3362.1,0.29795]
[1735387413916,0.4425,3362.4,3362.3,0.29793]
[1735387416815,0.74043,3362.4,3362.0,1.18]
[1735387417006,0.74043,3362.4,3362.2,0.29794]
[1735387417209,0.74043,3362.4,3362.1,0.29794]
[1735387417411,0.29793,3362.3,3362.1,0.29794]
[1735387417615,0.74043,3362.4,3362.2,0.29794]
[1735387417917,0.4415,3362.2,3362.0,1.18]
[1735387418216,0.4415,3362.2,3362.1,0.29795]
[1735387419016,0.73944,3362.2,3362.0,0.29795]
[1735387420410,0.73944,3362.2,3361.9,3.50576]
[1735387420613,0.29796,3362.0,3361.9,3.2078]
[1735387421711,0.29796,3362.0,3361.7,0.29798]
[1735387422105,0.29796,3362.0,3361.4,4.3858]
[1735387422311,0.29796,3362.0,3361.8,0.29797]
[1735387422815,0.29796,3362.0,3361.7,0.29798]
[1735387423215,0.29796,3362.0,3361.4,4.3858]
[1735387423518,0.29796,3362.0,3361.8,0.29797]
[1735387424021,0.4415,3362.2,3361.5,0.298]
[1735387424210,0.29798,3361.8,3361.5,0.298]
[1735387424412,1.3753,3361.7,3361.5,0.298]
[1735387424616,1.3753,3361.7,3361.6,0.29799]
[1735387425517,1.3753,3361.7,3361.4,3.2078]
[1735387425715,0.298,3361.6,3361.4,3.50581]
[1735387426117,1.67329,3361.7,3361.5,0.298]
[1735387426420,1.67329,3361.7,3361.4,3.50581]
[1735387426421,0.298,3361.6,3361.4,3.50581]
[1735387426624,0.298,3361.5,3361.4,3.2078]
[1735387427018,0.298,3361.6,3361.4,3.50581]
[1735387427523,0.298,3361.5,3361.4,3.2078]
[1735387427719,1.3753,3361.7,3361.0,3.2078]
[1735387427925,0.29803,3361.2,3361.0,3.2078]
[1735387428120,0.8798,3361.1,3360.5,0.01197]
[1735387428318,0.29808,3360.7,3360.5,0.01197]
[1735387428619,0.4425,3360.6,3360.5,0.31006]
[1735387431614,0.4425,3360.6,3360.5,0.01197]
[1735387431816,0.4425,3360.6,3360.5,0.31006]
[1735387434719,0.9045,3361.1,3360.9,0.29805]
[1735387435026,0.4258,3361.0,3360.9,0.29805]
[1735387436124,0.72385,3361.0,3360.8,0.29806]
[1735387436527,0.29806,3360.9,3360.7,3.2078]
[1735387436717,0.29806,3360.8,3360.7,3.2078]
[1735387437319,0.4258,3361.0,3360.7,3.50587]
[1735387437520,0.29806,3360.9,3360.7,3.50587]
[1735387437928,0.29806,3360.8,3360.7,3.2078]
[1735387438323,0.4258,3361.0,3360.7,3.2078]
[1735387438523,0.29806,3360.9,3360.7,3.50587]
[1735387439024,0.4258,3361.0,3360.7,3.2078]
[1735387439328,0.4258,3361.0,3360.9,0.29805]
[1735387440318,0.4373,3361.1,3360.7,4.78108466]
[1735387440523,0.4373,3361.1,3361.0,0.29805]
[1735387441926,0.73534,3361.1,3361.0,0.29805]
[1735387442727,0.4373,3361.1,3361.0,0.29805]
[1735387443324,3.2078,3361.5,3361.0,1.57328466]
[1735387443532,3.2078,3361.5,3361.4,0.29801]
[1735387444329,3.2078,3361.5,3361.1,0.4388]
[1735387444532,3.2078,3361.5,3361.4,0.29801]
[1735387444733,3.5058,3361.5,3361.4,0.29801]
[1735387444934,3.9699,3361.5,3361.4,0.29801]
[1735387445130,3.9699,3361.5,3361.1,0.4388]
[1735387445330,3.9699,3361.5,3361.3,0.29802]
[1735387446128,3.6719,3361.5,3361.4,0.29801]
[1735387447433,0.29802,3361.4,3361.2,0.29803]
[1735387447635,3.96991,3361.5,3361.3,0.29802]
[1735387448435,3.6719,3361.5,3361.1,0.4388]
[1735387448634,0.29801,3361.4,3361.1,0.4388]
[1735387448833,3.96991,3361.5,3361.3,0.29802]
[1735387449633,0.29801,3361.4,3361.2,0.29802]
[1735387449832,3.96991,3361.5,3361.3,0.29802]
[1735387450038,0.29801,3361.4,3361.3,0.29802]
[1735387450531,4.66228829,3362.1,3361.3,4.78108466]
[1735387450743,0.4242,3361.9,3361.8,0.29797]
[1735387451133,4.66228829,3362.1,3362.0,0.29796]
[1735387451827,5.85612765,3362.3,3361.6,2.31825466]
[1735387452026,0.29793,3362.3,3362.1,0.29795]
[1735387452738,3.50572,3362.4,3361.7,0.29798]
[1735387452934,3.50572,3362.4,3361.6,2.31825466]
[1735387453128,0.8892,3362.6,3361.6,1.57328466]
[1735387453333,1.18711,3362.6,3362.0,3.2078]
[1735387453631,1.18711,3362.6,3362.4,0.29792]
[1735387454037,0.29791,3362.5,3362.3,0.29792]
[1735387454436,0.29791,3362.5,3362.1,0.29795]
[1735387454632,0.29791,3362.5,3362.0,3.6464]
[1735387454942,0.29793,3362.4,3362.1,0.29795]
[1735387455240,0.29794,3362.2,3362.1,0.29794]
[1735387455433,0.29794,3362.2,3362.0,3.50575]
[1735387455630,0.4544,3362.1,3362.0,3.50575]
[1735387455843,0.4544,3362.1,3362.0,3.2078]
[1735387456037,1.20885,3362.1,3362.0,3.2078]
[1735387456345,1.20885,3362.1,3362.0,2.5033]
[1735387456531,0.9109,3362.1,3361.6,0.29799]
[1735387456735,0.29798,3361.7,3361.6,0.29799]
[1735387457135,0.29799,3361.6,3361.5,3.2078]
[1735387457337,0.29799,3361.7,3361.6,0.29799]
[1735387457644,0.29799,3361.7,3361.5,3.2078]
[1735387457645,0.29799,3361.7,3361.5,0.29799]
[1735387458256,3.2078,3361.9,3361.5,0.29799]
[1735387458751,0.29799,3361.7,3361.5,0.29799]
[1735387459152,0.4497,3361.6,3361.5,0.29799]
[1735387459654,0.8739,3361.6,3361.5,0.29799]
[1735387460047,4.66228829,3361.8,3361.3,4.78108466]
[1735387460253,4.66228829,3361.8,3361.7,0.29798]
[1735387460652,4.96026829,3361.8,3361.6,0.29799]
[1735387460950,0.29798,3361.7,3361.6,0.29799]
[1735387461149,0.29798,3361.8,3361.6,0.29799]
[1735387461349,0.29798,3361.7,3361.6,0.29799]
[1735387461555,0.29798,3361.8,3361.6,0.29799]
[1735387461856,0.4612,3361.7,3361.3,3.2078]
[1735387462049,0.298,3361.6,3361.4,0.298]
[1735387462956,0.4586,3361.5,3361.4,0.298]
[1735387463157,0.4586,3361.5,3361.3,3.2078]
[1735387463351,0.4586,3361.5,3361.3,3.50582]
[1735387463352,0.4425,3361.4,3361.3,3.50582]
[1735387463558,0.4425,3361.4,3361.3,3.2078]
[1735387463854,0.74051,3361.4,3361.3,3.2078]
[1735387465653,0.4425,3361.4,3361.3,3.50582]
[1735387466253,6.31472765,3361.5,3361.4,0.29801]
[1735387466454,5.85612765,3361.5,3361.4,0.29801]
[1735387466660,0.4612,3361.7,3361.6,0.29799]
[1735387467453,4.67652519,3361.9,3361.8,0.29798]
[1735387467759,4.67652519,3362.1,3362.0,0.29796]
[1735387468651,3.2078,3362.3,3361.7,0.8918]
[1735387468852,3.50573,3362.3,3362.1,0.29794]
[1735387469161,3.2078,3362.3,3362.2,0.29794]
[1735387472658,3.2078,3362.3,3362.2,1.87122466]
[1735387473956,0.9171,3362.6,3362.2,1.57328466]
[1735387474159,7.88432519,3362.7,3362.3,0.4424]
[1735387474365,7.88432519,3362.7,3362.6,0.2979]
[1735387474956,3.2078,3362.7,3362.6,0.2979]
[1735387475955,4.97441519,3362.8,3362.6,0.2979]
[1735387476160,0.29789,3362.8,3362.6,0.2979]
[1735387476665,0.2979,3362.8,3362.5,0.29791]
[1735387476859,0.2979,3362.7,3362.5,0.29791]
[1735387477962,0.2979,3362.7,3362.3,0.8773]
[1735387478165,0.2979,3362.7,3362.2,4.78108466]
[1735387478166,0.29791,3362.6,3362.2,4.78108466]
[1735387478366,0.29792,3362.5,3362.3,0.29792]
[1735387478761,0.29793,3362.3,3362.2,3.2078]
[1735387478966,0.4697,3362.4,3362.2,3.2078]
[1735387479160,0.76763,3362.4,3362.2,3.50574]
[1735387480862,0.4697,3362.4,3362.3,0.29793]
[1735387481066,0.76762,3362.4,3362.2,3.50573]
[1735387481467,0.4697,3362.4,3362.3,0.29793]
[1735387484167,0.76762,3362.4,3362.2,3.50573]
[1735387484768,0.76762,3362.4,3362.2,0.29793]
[1735387485565,0.4697,3362.4,3362.3,0.29793]
[1735387490170,5.13902519,3362.6,3362.5,0.29791]
[1735387490973,0.4625,3362.6,3362.5,0.29791]
[1735387492172,5.12400723,3362.7,3362.6,0.2979]
[1735387492371,4.67540723,3362.7,3362.6,0.2979]
[1735387492769,4.67540723,3362.7,3362.6,0.7448]
[1735387493476,8.75230723,3362.9,3362.6,0.4469]
[1735387493677,8.75230723,3362.9,3362.8,0.29789]
[1735387494970,8.75230723,3362.9,3362.5,1.57328466]
[1735387495171,0.29791,3362.6,3362.5,0.29791]
[1735387495370,8.75230723,3362.9,3362.6,0.2979]
[1735387495371,0.2979,3362.7,3362.6,0.2979]
[1735387496877,9.05018723,3362.9,3362.8,0.29789]
[1735387497070,8.75230723,3362.9,3362.8,0.29789]
[1735387497466,8.75230723,3362.9,3362.5,1.57328466]
[1735387497766,0.29791,3362.6,3362.5,0.29791]
[1735387498578,0.29792,3362.5,3362.4,0.29792]
[1735387499670,4.0769,3362.9,3362.4,0.29792]
[1735387499869,0.29791,3362.5,3362.4,0.29792]
[1735387500969,0.29791,3362.6,3362.4,0.29792]
[1735387501171,8.75230723,3362.9,3362.4,0.29792]
[1735387501370,0.29791,3362.6,3362.4,0.29792]
[1735387501871,0.29791,3362.6,3362.5,0.29791]
[1735387502271,8.75230723,3362.9,3362.2,1.57328466]
[1735387502473,8.75230723,3362.9,3362.3,0.29793]
[1735387502872,0.29794,3362.2,3362.1,3.2078]
[1735387503073,0.74475,3362.7,3362.1,3.50574]
[1735387503277,8.75230723,3362.9,3362.1,3.50574]
[1735387503278,8.75230723,3362.9,3362.1,3.2078]
[1735387503469,8.75230723,3362.9,3362.5,0.29791]
[1735387503779,0.2979,3362.6,3362.5,0.29791]
[1735387504181,0.2979,3362.6,3362.1,3.2078]
[1735387504478,4.67540723,3362.7,3362.1,3.2078]
[1735387504681,0.29793,3362.4,3362.2,0.29793]
[1735387504875,0.9015,3362.3,3362.1,3.2078]
[1735387505080,0.29794,3362.2,3362.1,3.50575]
[1735387505577,1.19944,3362.3,3362.1,3.50575]
[1735387505977,1.19944,3362.3,3362.2,0.29794]
[1735387506176,0.9015,3362.3,3362.2,0.29794]
[1735387507273,4.67540723,3362.7,3362.2,0.29794]
[1735387507274,0.2979,3362.7,3362.2,0.29794]
[1735387507481,0.4527,3362.6,3362.1,3.95267]
[1735387508085,0.4521,3362.5,3362.1,3.95267]
[1735387509278,0.4521,3362.5,3362.4,0.29792]
[1735387510482,5.12530723,3362.8,3362.4,0.74481]
[1735387510683,4.67540723,3362.8,3362.7,0.2979]
[1735387510979,5.85612765,3362.8,3362.7,0.2979]
[1735387511878,5.85612765,3362.8,3362.7,3.5057]
[1735387512389,4.6820791,3362.8,3362.7,3.9446]
[1735387512780,4.6820791,3362.8,3362.7,8.9446]
[1735387513085,4.6820791,3362.8,3362.7,3.9446]
[1735387513479,6.6820791,3363.0,3362.9,0.29788]
[1735387513681,6.6820791,3363.0,3362.9,1.87116466]
[1735387514587,2.0,3363.0,3362.9,1.87116466]
[1735387518784,2.0,3363.0,3362.9,2.32206466]
[1735387520794,4.0,3363.5,3362.9,8.59746932]
[1735387520989,1.3671,3364.2,3363.7,0.29781]
[1735387521194,1.3671,3364.2,3363.7,3.04309466]
[1735387521692,6.0491791,3364.2,3363.7,2.74528466]
[1735387521883,6.0491791,3364.2,3364.1,1.87105466]
[1735387522688,5.5890791,3364.2,3364.1,1.87105466]
[1735387522887,5.1339791,3364.2,3364.1,1.87105466]
[1735387523492,0.4519,3364.2,3364.1,1.87105466]
[1735387526497,0.9143,3364.5,3364.4,0.29774]
[1735387526791,0.4551,3364.5,3364.4,1.87102466]
[1735387526994,2.0,3364.9,3364.8,0.29771]
[1735387527194,2.0,3364.9,3364.8,5.07879466]
[1735387527993,2.0,3364.9,3364.8,5.52239466]
[1735387529295,2.0,3364.9,3364.8,10.52239466]
[1735387530097,2.0,3364.9,3364.8,5.52239466]
[1735387530595,2.0,3364.9,3364.8,5.07879466]
[1735387532696,2.0,3364.9,3364.8,3.50551]
[1735387532896,2.0,3364.9,3364.8,5.07879466]
[1735387534399,0.18788194,3365.0,3364.8,4.78108466]
[1735387534598,0.18788194,3365.0,3364.9,0.2977]
[1735387535796,0.18788194,3365.0,3364.9,1.4687]
[1735387536894,0.18788194,3365.0,3364.9,0.2977]
[1735387537094,0.18788194,3365.0,3364.9,1.4687]
[1735387542401,0.4342,3365.4,3365.3,1.87095466]
[1735387542601,0.4342,3365.4,3365.3,5.07875466]
[1735387550505,0.4342,3365.4,3365.3,5.450908]
[1735387551512,0.4342,3365.4,3365.3,5.45090306]
[1735387554121,0.4342,3365.4,3365.3,5.07875466]
[1735387554319,0.4342,3365.4,3365.3,5.45092985]
[1735387554523,0.4342,3365.4,3365.3,5.45092928]
[1735387554822,0.4342,3365.4,3365.3,5.07875466]
[1735387555323,0.4342,3365.4,3365.3,5.45093576]
[1735387555823,0.4342,3365.4,3365.3,5.07875466]
[1735387556023,0.4342,3365.4,3365.3,6.25275466]
[1735387556823,0.4342,3365.4,3365.3,5.07875466]
[1735387558024,0.4342,3365.4,3365.3,4.37455466]
[1735387559017,0.29755,3366.6,3366.2,0.29758]
[1735387559328,6.68945968,3366.8,3366.4,0.29757]
[1735387559329,0.4282,3366.5,3366.4,0.29757]
[1735387559630,0.72576,3366.5,3366.4,0.86928466]
[1735387559925,0.72576,3366.5,3366.2,1.174]
[1735387559926,0.29758,3366.3,3366.2,1.174]
[1735387560123,0.4282,3366.5,3365.9,1.57328466]
[1735387560524,5.4282,3366.5,3365.9,1.57328466]
[1735387560721,0.2976,3366.1,3365.9,1.57328466]
[1735387561429,0.29759,3366.2,3365.9,1.87089466]
[1735387561817,0.29759,3366.2,3365.9,1.57328466]
[1735387562017,0.2976,3366.1,3365.9,1.57328466]
[1735387562421,0.29761,3365.9,3365.6,1.87092466]
[1735387562734,0.74395,3366.3,3365.6,1.57328466]
[1735387563129,0.29763,3365.8,3365.6,1.57328466]
[1735387563332,0.4256,3365.7,3365.6,1.87092466]
[1735387563532,0.4256,3365.7,3365.6,1.57328466]
[1735387564032,0.4256,3365.7,3365.6,1.87092466]
[1735387564432,0.4256,3365.7,3365.6,1.57328466]
[1735387564932,0.4256,3365.7,3365.6,1.87092466]
[1735387565131,0.8695,3365.7,3365.6,1.87092466]
[1735387566228,1.16713,3365.7,3365.6,1.57328466]
[1735387566428,0.8695,3365.7,3365.6,1.57328466]
[1735387566732,0.29763,3365.7,3365.6,1.57328466]
[1735387566932,0.29764,3365.6,3365.3,5.07874466]
[1735387567135,0.29765,3365.5,3365.3,5.07874466]
[1735387567336,0.73904,3365.6,3365.3,5.07874466]
[1735387567638,0.29766,3365.4,3365.3,1.57328466]
[1735387569534,4.9797391,3365.4,3365.3,1.57328466]
[1735387570131,4.9797391,3365.4,3364.8,3.2078]
[1735387570132,0.2977,3364.9,3364.8,3.2078]
[1735387571335,4.6820791,3365.0,3364.5,0.29773]
[1735387571535,0.8894,3364.8,3364.4,1.57328466]
[1735387571736,0.29772,3364.7,3364.4,1.87102466]
[1735387572034,0.73772,3364.7,3364.5,0.29773]
[1735387572229,0.29773,3364.6,3364.4,1.87102466]
[1735387572631,3.80492313,3364.6,3364.4,1.87102466]
[1735387572932,0.29774,3364.5,3364.4,1.57328466]
[1735387573138,3.80492313,3364.6,3364.4,1.87102466]
[1735387573434,3.80492313,3364.6,3364.4,1.57328466]
[1735387574735,3.50719313,3364.6,3364.5,0.29774]
[1735387575944,3.50719313,3364.6,3364.4,1.87102466]
[1735387576132,3.50719313,3364.6,3364.4,0.29774]
[1735387576440,3.80491313,3364.7,3364.4,0.29774]
[1735387577032,3.80491313,3364.7,3364.5,0.29773]
[1735387577233,0.29772,3364.7,3364.5,0.29773]
[1735387577634,0.29773,3364.6,3364.3,3.2078]
[1735387577837,0.29774,3364.5,3364.3,3.50555]
[1735387578339,0.9061,3364.4,3364.3,3.50555]
[1735387578534,0.4403,3364.4,3364.3,3.50555]
[1735387581247,0.4403,3364.4,3364.3,3.2078]
[1735387582141,0.73804,3364.4,3364.3,3.2078]
[1735387582642,0.4403,3364.4,3364.3,3.2078]
[1735387583441,0.73804,3364.4,3364.3,3.2078]
[1735387583741,0.4403,3364.4,3364.3,3.2078]
[1735387583942,0.73804,3364.4,3364.3,3.2078]
[1735387584940,0.4403,3364.4,3364.3,3.2078]